fUST/lending_fUST_20241127
["ID","MTS","AMOUNT","RATE_DAILY","PERIOD"]
[343558073,1732722639169,-2172.69966886,0.00024656,2]
[343558076,1732722639187,-1115.72196732,0.00024656,2]
[343558078,1732722639199,-500.0,0.00024657,3]
[343558081,1732722639212,-500.0,0.00024657,3]
[343558083,1732722639226,-291.48516421,0.00024657,3]
[343558085,1732722639242,-208.51483579,0.00024657,3]
[343558088,1732722639254,-500.0,0.00024657,3]
[343558090,1732722639267,-500.0,0.00024657,3]
[343558092,1732722639279,-529.01,0.00024657,3]
[343558096,1732722639291,-158.72712614,0.00024657,3]
[343558180,1732722640624,-341.27287386,0.00024657,3]
[343558182,1732722640636,-373.48712613,0.00024657,3]
[343558502,1732722643865,-141.98287387,0.00024657,3]
[343558503,1732722643878,-500.0,0.00024657,3]
[343558504,1732722643890,-500.0,0.00024657,3]
[343558505,1732722643901,-500.0,0.00024657,3]
[343558506,1732722643911,-700.39,0.00024657,3]
[343558507,1732722643921,-500.0,0.00024657,3]
[343558508,1732722643934,-500.0,0.00024657,3]
[343558509,1732722643945,-514.03503821,0.00024657,3]
[343558510,1732722643957,-500.0,0.00024657,3]
[343558511,1732722643967,-500.0,0.00024657,3]
[343558512,1732722643979,-500.0,0.00024657,3]
[343558513,1732722643991,-500.0,0.00024657,3]
[343558514,1732722644003,-500.0,0.00024657,3]
[343558515,1732722644014,-500.0,0.00024657,3]
[343558516,1732722644027,-500.0,0.00024657,3]
[343558517,1732722644038,-500.0,0.00024657,3]
[343558518,1732722644050,-501.40005676,0.00024657,3]
[343558519,1732722644062,-500.0,0.00024657,3]
[343558520,1732722644074,-500.0,0.00024657,3]
[343558521,1732722644085,-500.0,0.00024657,3]
[343558522,1732722644095,-502.48717709,0.00024657,3]
[343558523,1732722644106,-500.0,0.00024657,3]
[343558524,1732722644116,-500.0,0.00024657,3]
[343558525,1732722644127,-501.37351578,0.00024657,3]
[343558526,1732722644138,-500.0,0.00024657,3]
[343558527,1732722644150,-542.43944621,0.00024657,3]
[343558528,1732722644163,-503.15527901,0.00024657,3]
[343558529,1732722644175,-500.0,0.00024657,3]
[343558530,1732722644186,-500.0,0.00024657,3]
[343558531,1732722644196,-535.36818911,0.00024657,3]
[343558532,1732722644206,-500.0,0.00024657,3]
[343558533,1732722644217,-500.0,0.00024657,3]
[343558534,1732722644228,-500.0,0.00024657,3]
[343558535,1732722644239,-500.0,0.00024657,3]
[343558536,1732722644251,-500.0,0.00024657,3]
[343558537,1732722644262,-500.0,0.00024657,3]
[343558538,1732722644272,-515.57865869,0.00024657,3]
[343558539,1732722644283,-500.0,0.00024657,3]
[343558540,1732722644294,-500.0,0.00024657,3]
[343558541,1732722644305,-500.0,0.00024657,3]
[343558542,1732722644316,-500.0,0.00024657,3]
[343558543,1732722644326,-500.0,0.00024657,3]
[343558544,1732722644340,-500.0,0.00024657,3]
[343558545,1732722644351,-500.0,0.00024657,3]
[343558546,1732722644365,-407.07576864,0.00024657,3]
[343558547,1732722644376,-500.0,0.00024657,3]
[343558548,1732722644388,-292.05055242,0.00024657,3]
[343558549,1732722644411,-207.94944758,0.00024657,3]
[343558550,1732722644422,-502.97072936,0.00024657,3]
[343558551,1732722644434,-376.82231197,0.00024657,3]
[343558552,1732722644447,-500.0,0.00024657,3]
[343558553,1732722644458,-500.0,0.00024657,3]
[343558554,1732722644469,-623.73673547,0.00024657,3]
[343558555,1732722644480,-500.0,0.00024657,3]
[343558556,1732722644493,-500.0,0.00024657,3]
[343558557,1732722644504,-200.0,0.00024657,3]
[343558558,1732722644515,-200.0,0.00024657,3]
[343558559,1732722644526,-500.0,0.00024657,3]
[343558560,1732722644537,-1000.0,0.00024657,10]
[343558561,1732722644548,-1000.0,0.00024657,10]
[343558562,1732722644559,-746.34,0.00024657,3]
[343558563,1732722644570,-746.34,0.00024657,3]
[343558564,1732722644581,-500.0,0.00024657,3]
[343558565,1732722644591,-500.0,0.00024657,3]
[343558566,1732722644603,-500.0,0.00024657,3]
[343558567,1732722644614,-500.0,0.00024657,3]
[343558568,1732722644625,-500.8050452,0.00024657,3]
[343558569,1732722644636,-500.0,0.00024657,3]
[343558570,1732722644647,-500.0,0.00024657,3]
[343558571,1732722644657,-500.0,0.00024657,3]
[343558572,1732722644668,-500.0,0.00024657,3]
[343558573,1732722644679,-500.0,0.00024657,3]
[343558574,1732722644691,-500.0,0.00024657,3]
[343558575,1732722644701,-500.0,0.00024657,3]
[343558576,1732722644713,-616.3982336,0.00024657,3]
[343558577,1732722644724,-500.0,0.00024657,3]
[343558578,1732722644735,-500.0,0.00024657,3]
[343558579,1732722644745,-500.0,0.00024657,3]
[343558580,1732722644756,-504.47932714,0.00024657,3]
[343558581,1732722644768,-500.0,0.00024657,3]
[343558582,1732722644779,-500.0,0.00024657,3]
[343558583,1732722644790,-552.34950237,0.00024657,3]
[343558584,1732722644801,-500.0,0.00024657,3]
[343558585,1732722644813,-500.0,0.00024657,3]
[343558586,1732722644823,-500.0,0.00024657,3]
[343558587,1732722644835,-500.0,0.00024657,3]
[343558588,1732722644845,-531.13463928,0.00024657,3]
[343558589,1732722644859,-500.0,0.00024657,3]
[343558590,1732722644873,-500.0,0.00024657,3]
[343558591,1732722644884,-500.0,0.00024657,3]
[343558592,1732722644895,-500.0,0.00024657,3]
[343558593,1732722644907,-500.0,0.00024657,3]
[343558594,1732722644918,-532.53284744,0.00024657,3]
[343558595,1732722644929,-500.0,0.00024657,3]
[343558596,1732722644938,-500.0,0.00024657,3]
[343558602,1732722645101,-500.0,0.00024657,3]
[343558605,1732722645118,-502.34380533,0.00024657,3]
[343558607,1732722645128,-500.0,0.00024657,3]
[343558609,1732722645137,-500.0,0.00024657,3]
[343558611,1732722645146,-500.0,0.00024657,3]
[343558613,1732722645155,-500.0,0.00024657,3]
[343558615,1732722645164,-500.0,0.00024657,3]
[343558617,1732722645173,-504.02664503,0.00024657,3]
[343558619,1732722645183,-500.0,0.00024657,3]
[343558621,1732722645192,-500.0,0.00024657,3]
[343558623,1732722645202,-500.0,0.00024657,3]
[343558625,1732722645211,-500.0,0.00024657,3]
[343558627,1732722645220,-504.31022827,0.00024657,3]
[343558629,1732722645230,-500.0,0.00024657,3]
[343558631,1732722645239,-500.0,0.00024657,3]
[343558634,1732722645248,-500.0,0.00024657,3]
[343558636,1732722645258,-500.0,0.00024657,3]
[343558638,1732722645267,-500.0,0.00024657,3]
[343558640,1732722645278,-500.0,0.00024657,3]
[343558642,1732722645287,-500.0,0.00024657,3]
[343558644,1732722645296,-500.0,0.00024657,3]
[343558646,1732722645305,-527.25377495,0.00024657,3]
[343558648,1732722645314,-500.0,0.00024657,3]
[343558650,1732722645323,-506.95920722,0.00024657,3]
[343558652,1732722645332,-500.0,0.00024657,3]
[343558654,1732722645341,-396.76844694,0.00024657,3]
[343558656,1732722645351,-501.77339202,0.00024657,3]
[343558658,1732722645363,-500.0,0.00024657,3]
[343558660,1732722645372,-500.0,0.00024657,3]
[343558662,1732722645383,-521.67968075,0.00024657,3]
[343558664,1732722645392,-500.0,0.00024657,3]
[343558666,1732722645401,-500.0,0.00024657,3]
[343558668,1732722645415,-502.92551484,0.00024657,3]
[343558670,1732722645424,-317.10090357,0.00024657,3]
[343558672,1732722645433,-539.46860426,0.00024657,3]
[343558674,1732722645442,-527.01427974,0.00024657,3]
[343558676,1732722645453,-500.0,0.00024657,3]
[343558678,1732722645462,-500.0,0.00024657,3]
[343558680,1732722645472,-500.0,0.00024657,3]
[343558682,1732722645483,-500.0,0.00024657,3]
[343558684,1732722645494,-500.0,0.00024657,3]
[343558686,1732722645503,-500.0,0.00024657,3]
[343558688,1732722645512,-500.0,0.00024657,3]
[343558690,1732722645522,-500.0,0.00024657,3]
[343558692,1732722645531,-500.0,0.00024657,3]
[343558694,1732722645540,-500.0,0.00024657,3]
[343558696,1732722645550,-500.0,0.00024657,3]
[343558698,1732722645559,-578.0237153,0.00024657,3]
[343558701,1732722645570,-500.0,0.00024657,3]
[343558703,1732722645579,-504.36054543,0.00024657,3]
[343558705,1732722645588,-500.0,0.00024657,3]
[343558707,1732722645598,-500.0,0.00024657,3]
[343558709,1732722645609,-500.0,0.00024657,3]
[343558711,1732722645618,-500.0,0.00024657,3]
[343558713,1732722645627,-500.0,0.00024657,3]
[343558715,1732722645637,-500.0,0.00024657,3]
[343558717,1732722645646,-479.73076769,0.00024657,3]
[343558719,1732722645655,-500.0,0.00024657,3]
[343558721,1732722645664,-501.50389375,0.00024657,3]
[343558723,1732722645673,-500.0,0.00024657,3]
[343558724,1732722645686,-500.0,0.00024657,3]
[343558727,1732722645696,-500.0,0.00024657,3]
[343558729,1732722645708,-500.0,0.00024657,3]
[343558731,1732722645717,-500.0,0.00024657,3]
[343558732,1732722645726,-500.0,0.00024657,3]
[343558735,1732722645736,-500.0,0.00024657,3]
[343558737,1732722645747,-500.0,0.00024657,3]
[343558739,1732722645756,-500.0,0.00024657,3]
[343558742,1732722645765,-327.26730984,0.00024657,3]
[343558744,1732722645774,-535.61100186,0.00024657,3]
[343558746,1732722645783,-500.0,0.00024657,3]
[343558748,1732722645793,-500.0,0.00024657,3]
[343558750,1732722645803,-500.0,0.00024657,3]
[343558752,1732722645812,-500.0,0.00024657,3]
[343558754,1732722645821,-500.0,0.00024657,3]
[343558756,1732722645831,-628.46342254,0.00024657,3]
[343558758,1732722645840,-500.0,0.00024657,3]
[343558760,1732722645849,-500.0,0.00024657,3]
[343558762,1732722645860,-500.0,0.00024657,3]
[343558764,1732722645869,-500.0,0.00024657,3]
[343558768,1732722645878,-500.0,0.00024657,3]
[343558772,1732722645888,-500.0,0.00024657,3]
[343558774,1732722645897,-522.14285997,0.00024657,3]
[343558778,1732722645907,-500.0,0.00024657,3]
[343558782,1732722645917,-500.0,0.00024657,3]
[343558784,1732722645927,-500.0,0.00024657,3]
[343558787,1732722645936,-501.29497187,0.00024657,3]
[343558789,1732722645945,-733.76,0.00024657,3]
[343558791,1732722645954,-500.0,0.00024657,3]
[343558793,1732722645964,-500.0,0.00024657,3]
[343558795,1732722645973,-523.04321401,0.00024657,3]
[343558797,1732722645983,-500.0,0.00024657,3]
[343558799,1732722645993,-500.0,0.00024657,3]
[343558801,1732722646002,-500.0,0.00024657,3]
[343558805,1732722646011,-500.0,0.00024657,3]
[343558808,1732722646021,-506.33808094,0.00024657,3]
[343558810,1732722646030,-220.7456221,0.00024658,2]
[343558812,1732722646039,-501.15609388,0.00024686,2]
[343558814,1732722646049,-1000.000001,0.00024768,2]
[343558816,1732722646058,-257.48994384,0.00024769,2]
[343558818,1732722646067,-500.0,0.00024806,3]
[343558820,1732722646076,-500.0,0.00024806,3]
[343558822,1732722646086,-500.0,0.00024808,3]
[343558824,1732722646095,-350.02753155,0.00024808,3]
[343558826,1732722646107,-529.828077,0.00024808,3]
[343558828,1732722646116,-620.30183345,0.00024808,3]
[343558830,1732722646126,-500.22728908,0.00024808,3]
[343558832,1732722646135,-500.0,0.00024808,3]
[343558834,1732722646144,-500.0,0.00024808,3]
[343558836,1732722646154,-500.0,0.00024808,3]
[343558838,1732722646163,-500.0,0.00024808,3]
[343558840,1732722646173,-520.49519383,0.00024808,3]
[343558842,1732722646183,-500.0,0.00024808,3]
[343558845,1732722646194,-200.0,0.00024808,3]
[343558847,1732722646203,-1000.0,0.00024808,10]
[343558849,1732722646213,-746.34,0.00024808,3]
[343558851,1732722646222,-504.00576696,0.00024808,3]
[343558853,1732722646231,-500.0,0.00024808,3]
[343558855,1732722646241,-500.0,0.00024808,3]
[343558857,1732722646250,-500.0,0.00024808,3]
[343558859,1732722646259,-500.0,0.00024808,3]
[343558861,1732722646269,-500.0,0.00024808,3]
[343558863,1732722646278,-500.0,0.00024808,3]
[343558865,1732722646287,-504.46720454,0.00024808,3]
[343558867,1732722646296,-504.14239892,0.00024808,3]
[343558869,1732722646306,-500.0,0.00024808,3]
[343558871,1732722646317,-500.0,0.00024808,3]
[343558873,1732722646330,-504.19600281,0.00024808,3]
[343558875,1732722646343,-500.0,0.00024808,3]
[343558877,1732722646352,-500.0,0.00024808,3]
[343558878,1732722646363,-500.0,0.00024808,3]
[343558880,1732722646371,-500.0,0.00024808,3]
[343558882,1732722646381,-500.0,0.00024808,3]
[343558884,1732722646391,-500.0,0.00024808,3]
[343558886,1732722646401,-500.0,0.00024808,3]
[343558888,1732722646412,-500.0,0.00024808,3]
[343558890,1732722646423,-500.0,0.00024808,3]
[343558892,1732722646433,-500.0,0.0002484,2]
[343558894,1732722646442,-436.73862172,0.0002484,2]
[343558896,1732722646451,-10290.37228452,0.00024847,2]
[343558898,1732722646463,-166.91914,0.00024869,2]
[343558900,1732722646472,-500.0,0.0002492,3]
[343558902,1732722646482,-173.983722,0.00024997,2]
[343558904,1732722646493,-151.0,0.00025,12]
[343558907,1732722646503,-302.75782099,0.00025,2]
[343558910,1732722646512,-10290.37228452,0.00025179,2]
[343558912,1732722646522,-467.06149726,0.00025188,3]
[343558914,1732722646531,-301.0,0.000252,2]
[343558916,1732722646540,-1000.0,0.000252,2]
[343558918,1732722646549,-151.0,0.000252,18]
[343558920,1732722646559,-1000.0,0.00025208,2]
[343558922,1732722646568,-500.0,0.00025209,3]
[343558924,1732722646579,-300.00000001,0.00025209,3]
[343558926,1732722646589,-500.0,0.00025209,3]
[343558928,1732722646599,-588.8136447,0.00025209,3]
[343558930,1732722646611,-500.0,0.00025209,3]
[343558932,1732722646621,-200.0,0.00025209,3]
[343558934,1732722646630,-1000.0,0.00025209,10]
[343558936,1732722646639,-746.34,0.00025209,3]
[343558938,1732722646649,-500.0,0.00025209,3]
[343558940,1732722646658,-516.78365932,0.00025209,3]
[343558943,1732722646668,-500.0,0.00025209,3]
[343558945,1732722646678,-500.0,0.00025209,3]
[343558947,1732722646688,-500.0,0.00025209,3]
[343558949,1732722646698,-500.0,0.00025209,3]
[343558951,1732722646708,-500.0,0.00025209,3]
[343558953,1732722646717,-500.0,0.00025209,3]
[343558955,1732722646731,-500.0,0.00025209,3]
[343558957,1732722646741,-500.0,0.00025209,3]
[343558959,1732722646750,-500.0,0.00025209,3]
[343558961,1732722646759,-500.0,0.00025209,3]
[343558963,1732722646769,-355.44623208,0.00025209,3]
[343558965,1732722646778,-500.0,0.00025209,3]
[343558967,1732722646787,-302.75782099,0.0002525,2]
[343558969,1732722646796,-173.983722,0.00025264,2]
[343558971,1732722646806,-10290.37228452,0.00025274,2]
[343558973,1732722646815,-1000.0,0.00025388,2]
[343558975,1732722646825,-151.0,0.000255,15]
[343558977,1732722646835,-302.75782099,0.000255,2]
[343558979,1732722646844,-173.983722,0.00025531,2]
[343558981,1732722646856,-3275.85080795,0.00025599,2]
[343558983,1732722646865,-10290.37228452,0.00025605,2]
[343558985,1732722646875,-382.3,0.00025636,3]
[343558987,1732722646884,-500.0,0.00025667,3]
[343558989,1732722646894,-500.0,0.00025667,3]
[343558991,1732722646904,-500.0,0.00025667,3]
[343558993,1732722646914,-200.0,0.00025667,3]
[343558995,1732722646923,-1000.0,0.00025667,10]
[343558997,1732722646933,-746.34,0.00025667,3]
[343558999,1732722646942,-500.0,0.00025667,3]
[343559001,1732722646953,-500.0,0.00025667,3]
[343559003,1732722646962,-500.0,0.00025667,3]
[343559005,1732722646971,-500.0,0.00025667,3]
[343559007,1732722646981,-500.0,0.00025667,3]
[343559009,1732722646990,-500.0,0.00025667,3]
[343559011,1732722646999,-500.0,0.00025667,3]
[343559013,1732722647009,-500.0,0.00025667,3]
[343559015,1732722647018,-500.0,0.00025667,3]
[343559017,1732722647027,-500.0,0.00025667,3]
[343559019,1732722647036,-318.84,0.00025667,3]
[343559021,1732722647045,-500.0,0.00025667,3]
[343559023,1732722647055,-278.69,0.00025671,11]
[343559025,1732722647064,-500.0,0.00025672,3]
[343559027,1732722647074,-500.0,0.00025672,3]
[343559029,1732722647083,-733.76,0.00025672,3]
[343559031,1732722647093,-501.7665431,0.00025673,2]
[343559033,1732722647103,-500.0,0.00025673,2]
[343559035,1732722647114,-500.0,0.00025673,2]
[343559037,1732722647126,-500.0,0.00025673,2]
[343559039,1732722647136,-800.0,0.00025688,2]
[343559041,1732722647146,-500.0,0.00025689,3]
[343559042,1732722647155,-500.0,0.00025689,3]
[343559045,1732722647165,-500.0,0.00025689,3]
[343559046,1732722647175,-500.0,0.00025689,3]
[343559049,1732722647184,-500.0,0.00025689,3]
[343559051,1732722647193,-529.01,0.00025689,3]
[343559053,1732722647203,-500.0,0.00025689,3]
[343559055,1732722647213,-515.47,0.00025689,3]
[343559057,1732722647223,-500.0,0.00025689,3]
[343559059,1732722647234,-394.55085123,0.00025689,3]
[343559071,1732722647331,-105.44914877,0.00025689,3]
[343559073,1732722647342,-500.0,0.00025689,3]
[343559075,1732722647351,-690.98902431,0.00025689,3]
[343559077,1732722647364,-9.40097569,0.00025689,3]
[343559079,1732722647374,-500.0,0.00025689,3]
[343559081,1732722647383,-500.0,0.00025689,3]
[343559083,1732722647392,-500.0,0.00025689,3]
[343559085,1732722647402,-500.0,0.00025689,3]
[343559087,1732722647413,-500.0,0.00025689,3]
[343559089,1732722647424,-500.0,0.00025689,3]
[343559091,1732722647434,-500.0,0.00025689,3]
[343559093,1732722647443,-500.0,0.00025697,3]
[343559095,1732722647452,-500.0,0.00025697,3]
[343559097,1732722647463,-500.0,0.00025697,3]
[343559099,1732722647472,-500.0,0.00025697,3]
[343559101,1732722647482,-500.0,0.00025697,3]
[343559103,1732722647494,-200.0,0.00025697,3]
[343559105,1732722647504,-500.0,0.00025697,3]
[343559107,1732722647514,-200.0,0.00025697,3]
[343559109,1732722647524,-1000.0,0.00025697,10]
[343559111,1732722647534,-1000.0,0.00025697,10]
[343559113,1732722647544,-746.34,0.00025697,3]
[343559115,1732722647554,-746.34,0.00025697,3]
[343559117,1732722647564,-500.0,0.00025697,3]
[343559120,1732722647574,-500.0,0.00025697,3]
[343559122,1732722647585,-500.0,0.00025697,3]
[343559124,1732722647595,-500.0,0.00025697,3]
[343559126,1732722647605,-500.0,0.00025697,3]
[343559128,1732722647615,-500.0,0.00025697,3]
[343559130,1732722647625,-500.0,0.00025697,3]
[343559132,1732722647634,-500.0,0.00025697,3]
[343559134,1732722647643,-500.0,0.00025697,3]
[343559136,1732722647653,-500.0,0.00025697,3]
[343559138,1732722647662,-500.0,0.00025697,3]
[343559140,1732722647672,-500.0,0.00025697,3]
[343559142,1732722647681,-500.0,0.00025697,3]
[343559144,1732722647691,-500.0,0.00025697,3]
[343559146,1732722647700,-284.14944659,0.00025697,3]
[343559148,1732722647709,-500.0,0.00025697,3]
[343559150,1732722647719,-500.0,0.00025697,3]
[343559152,1732722647728,-500.0,0.00025697,3]
[343559154,1732722647739,-500.0,0.00025697,3]
[343559156,1732722647751,-500.0,0.00025697,3]
[343559158,1732722647766,-500.0,0.00025697,3]
[343559160,1732722647776,-733.76,0.00025697,3]
[343559162,1732722647786,-733.76,0.00025697,3]
[343559164,1732722647795,-500.0,0.00025697,3]
[343559166,1732722647805,-500.0,0.00025697,3]
[343559168,1732722647815,-500.0,0.00025698,3]
[343559170,1732722647825,-283.48467773,0.00025698,3]
[343559177,1732722647886,-500.41232352,0.00024657,3]
[343559179,1732722647897,-500.0,0.00025698,3]
[343559181,1732722647906,-500.0,0.00025698,3]
[343559183,1732722647916,-68.55528627,0.00025698,3]
[343559186,1732722647928,-345.3505607,0.00025698,3]
[343559188,1732722647940,-86.09415303,0.00025698,3]
[343559189,1732722647949,-500.0,0.00025698,3]
[343559190,1732722647959,-500.0,0.00025698,3]
[343559191,1732722648084,-500.0,0.00025698,3]
[343559192,1732722648094,-500.0,0.00025698,3]
[343559193,1732722648105,-500.0,0.00025698,3]
[343559194,1732722648114,-529.01,0.00025698,3]
[343559195,1732722648123,-340.4692891,0.00025698,3]
[343559196,1732722648135,-188.5407109,0.00025698,3]
[343559197,1732722648144,-500.0,0.00025698,3]
[343559199,1732722648154,-500.0,0.00025698,3]
[343559200,1732722648163,-515.47,0.00025698,3]
[343559202,1732722648172,-515.47,0.00025698,3]
[343559204,1732722648183,-44.9706931,0.00025698,3]
[343559207,1732722648195,-455.0293069,0.00025698,3]
[343559209,1732722648204,-500.0,0.00025698,3]
[343559211,1732722648214,-500.0,0.00025698,3]
[343559213,1732722648224,-500.0,0.00025698,3]
[343559215,1732722648233,-590.86,0.00025698,3]
[343559217,1732722648242,-700.39,0.00025698,3]
[343559219,1732722648252,-700.39,0.00025698,3]
[343559221,1732722648261,-500.0,0.00025698,3]
[343559223,1732722648270,-500.0,0.00025698,3]
[343559225,1732722648280,-500.0,0.00025698,3]
[343559227,1732722648289,-500.0,0.00025698,3]
[343559228,1732722648299,-500.0,0.00025698,3]
[343559230,1732722648309,-500.0,0.00025698,3]
[343559232,1732722648319,-500.0,0.00025698,3]
[343559234,1732722648329,-200.0,0.00025698,3]
[343559236,1732722648339,-500.0,0.00025698,3]
[343559238,1732722648349,-200.0,0.00025698,3]
[343559240,1732722648362,-1000.0,0.00025698,10]
[343559242,1732722648375,-1000.0,0.00025698,10]
[343559244,1732722648385,-500.0,0.00025698,3]
[343559246,1732722648396,-372.19,0.00025698,3]
[343559248,1732722648406,-746.34,0.00025698,3]
[343559250,1732722648422,-746.34,0.00025698,3]
[343559252,1732722648432,-428.18998239,0.00025698,3]
[343559254,1732722648442,-500.0,0.00025698,3]
[343559256,1732722648452,-500.0,0.00025698,3]
[343559258,1732722648463,-500.0,0.00025698,3]
[343559260,1732722648473,-594.77059027,0.00025698,3]
[343559262,1732722648483,-500.0,0.00025698,3]
[343559264,1732722648495,-500.0,0.00025698,3]
[343559266,1732722648505,-500.0,0.00025698,3]
[343559268,1732722648515,-500.0,0.00025698,3]
[343559270,1732722648526,-500.0,0.00025698,3]
[343559272,1732722648536,-500.0,0.00025698,3]
[343559274,1732722648547,-500.0,0.00025698,3]
[343559276,1732722648558,-500.0,0.00025698,3]
[343559278,1732722648568,-500.0,0.00025698,3]
[343559280,1732722648578,-233.89786919,0.00025698,3]
[343559282,1732722648589,-500.0,0.00025698,3]
[343559284,1732722648599,-500.0,0.00025698,3]
[343559286,1732722648614,-500.0,0.00025698,3]
[343559288,1732722648624,-500.0,0.00025698,3]
[343559290,1732722648635,-500.0,0.00025698,3]
[343559292,1732722648645,-500.0,0.00025698,3]
[343559294,1732722648655,-733.76,0.00025698,3]
[343559296,1732722648665,-500.0,0.00025698,3]
[343559298,1732722648675,-500.0,0.00025698,3]
[343559300,1732722648685,-500.0,0.00025698,3]
[343559302,1732722648695,-500.0,0.00025698,3]
[343559304,1732722648704,-1000.0,0.00025699,2]
[343559306,1732722648714,-500.0,0.00025699,3]
[343559308,1732722648724,-500.0,0.00025699,3]
[343559310,1732722648734,-500.0,0.00025699,3]
[343559312,1732722648744,-500.0,0.00025699,3]
[343559313,1732722648753,-500.0,0.00025699,3]
[343559316,1732722648763,-500.0,0.00025699,3]
[343559317,1732722648773,-500.0,0.00025699,3]
[343559319,1732722648783,-500.0,0.00025699,3]
[343559321,1732722648793,-500.0,0.00025699,3]
[343559323,1732722648802,-500.0,0.00025699,3]
[343559325,1732722648812,-500.0,0.00025699,3]
[343559327,1732722648822,-500.0,0.00025699,3]
[343559329,1732722648832,-529.01,0.00025699,3]
[343559331,1732722648842,-529.01,0.00025699,3]
[343559333,1732722648851,-529.01,0.00025699,3]
[343559335,1732722648867,-500.0,0.00025699,3]
[343559337,1732722648877,-500.0,0.00025699,3]
[343559339,1732722648887,-500.0,0.00025699,3]
[343559341,1732722648897,-515.47,0.00025699,3]
[343559343,1732722648907,-515.47,0.00025699,3]
[343559345,1732722648917,-515.47,0.00025699,3]
[343559347,1732722648927,-500.0,0.00025699,3]
[343559349,1732722648937,-500.0,0.00025699,3]
[343559351,1732722648947,-500.0,0.00025699,3]
[343559353,1732722648956,-500.0,0.00025699,3]
[343559355,1732722648966,-500.0,0.00025699,3]
[343559357,1732722648975,-500.0,0.00025699,3]
[343559359,1732722648985,-500.0,0.00025699,3]
[343559361,1732722648995,-700.39,0.00025699,3]
[343559363,1732722649004,-700.39,0.00025699,3]
[343559365,1732722649014,-700.39,0.00025699,3]
[343559367,1732722649023,-500.0,0.00025699,3]
[343559369,1732722649033,-305.52036795,0.00025699,3]
[343559371,1732722649043,-500.0,0.00025699,3]
[343559373,1732722649052,-500.0,0.00025699,3]
[343559375,1732722649062,-500.0,0.00025699,3]
[343559377,1732722649071,-500.0,0.00025699,3]
[343559378,1732722649081,-500.0,0.00025699,3]
[343559380,1732722649091,-200.0,0.00025699,3]
[343559382,1732722649100,-500.0,0.00025699,3]
[343559384,1732722649115,-200.0,0.00025699,3]
[343559386,1732722649125,-308.64422854,0.00025699,3]
[343559388,1732722649135,-1000.0,0.00025699,10]
[343559390,1732722649145,-1000.0,0.00025699,10]
[343559392,1732722649154,-1000.0,0.00025699,10]
[343559393,1732722649164,-746.34,0.00025699,3]
[343559395,1732722649173,-746.34,0.00025699,3]
[343559396,1732722649183,-746.34,0.00025699,3]
[343559397,1732722649193,-500.0,0.00025699,3]
[343559399,1732722649203,-500.0,0.00025699,3]
[343559401,1732722649212,-594.28,0.00025699,3]
[343559402,1732722649222,-500.0,0.00025699,3]
[343559404,1732722649231,-500.0,0.00025699,3]
[343559406,1732722649241,-500.0,0.00025699,3]